bitfinex-derivatives/quotes_BTCF0:USTF0_20250527
["timestamp","ask_amount","ask_price","bid_price","bid_amount"]
[1748341519588,1.98567185,109810.0,109800.0,0.35695978]
[1748341519978,2.10106181,109810.0,109800.0,0.35695978]
[1748341522483,2.13406181,109810.0,109800.0,0.35695978]
[1748341524587,2.18406181,109810.0,109800.0,0.35695978]
[1748341526185,1.41330181,109810.0,109800.0,0.35695978]
[1748341526376,1.82322181,109810.0,109800.0,0.35695978]
[1748341528596,1.70783185,109810.0,109800.0,0.35695978]
[1748341528887,1.85462181,109810.0,109800.0,0.35695978]
[1748341529295,1.85462181,109810.0,109800.0,0.40597654]
[1748341532394,1.85462181,109810.0,109800.0,0.48714412]
[1748341532696,1.85462181,109810.0,109800.0,0.48736531]
[1748341534394,1.80462181,109810.0,109800.0,0.48736531]
[1748341536790,1.80462181,109810.0,109800.0,0.43812794]
[1748341536987,1.80462181,109810.0,109800.0,0.48739123]
[1748341538391,1.80406181,109810.0,109800.0,0.48739123]
[1748341539100,1.80406181,109810.0,109800.0,0.40620693]
[1748341539501,1.80406181,109810.0,109800.0,0.49898898]
[1748341540403,1.71877328,109810.0,109800.0,0.49898898]
[1748341540696,1.80408318,109810.0,109800.0,0.1747292]
[1748341541001,1.80408318,109810.0,109800.0,0.4947292]
[1748341541304,1.80408318,109810.0,109800.0,0.49474742]
[1748341541603,1.71877328,109810.0,109800.0,0.49474742]
[1748341542099,1.35797328,109810.0,109800.0,0.49474742]
[1748341542301,1.71877328,109810.0,109800.0,0.49474742]
[1748341543189,0.80114332,109810.0,109800.0,0.95939848]
[1748341543394,0.87303181,109810.0,109800.0,1.02705005]
[1748341543700,0.89704142,109810.0,109800.0,0.61809144]
[1748341543899,2.10315138,109810.0,109800.0,0.33151791]
[1748341544107,1.76101197,109810.0,109800.0,0.321]
[1748341544298,1.97152177,109810.0,109800.0,0.321]
[1748341544495,1.97164177,109810.0,109800.0,0.321]
[1748341545097,1.96964177,109810.0,109800.0,0.321]
[1748341545904,1.97064177,109810.0,109800.0,0.321]
[1748341547706,1.98461961,109810.0,109800.0,0.321]
[1748341547909,1.98457961,109810.0,109800.0,0.321]
[1748341548706,1.98457961,109810.0,109800.0,0.1727334]
[1748341549302,2.04457961,109810.0,109800.0,0.1727334]
[1748341549803,1.92918965,109810.0,109800.0,0.18062318]
[1748341550007,2.04457961,109810.0,109800.0,0.18062318]
[1748341550200,1.98405961,109810.0,109800.0,0.18062318]
[1748341552807,1.98405961,109810.0,109800.0,0.18062285]
[1748341554306,1.98405961,109810.0,109800.0,0.37124965]
[1748341554701,1.98405961,109810.0,109800.0,0.37123112]
[1748341555803,2.36405961,109810.0,109800.0,0.37123112]
[1748341556002,1.98405961,109810.0,109800.0,0.37123112]
[1748341556211,1.98405961,109810.0,109800.0,0.31496904]
[1748341556606,1.86866965,109810.0,109800.0,0.31496904]
[1748341556804,1.98405961,109810.0,109800.0,0.31496904]
[1748341557406,1.98405961,109810.0,109800.0,0.25444208]
[1748341558298,1.98405961,109810.0,109800.0,0.22214208]
[1748341558709,1.98405961,109810.0,109800.0,0.30336614]
[1748341559305,1.98405961,109810.0,109800.0,0.30336612]
[1748341560009,1.98405961,109810.0,109800.0,0.25395746]
[1748341560209,1.98405961,109810.0,109800.0,0.30336667]
[1748341561121,1.98405961,109810.0,109800.0,0.33566667]
[1748341562317,1.98405961,109810.0,109800.0,0.30336667]
[1748341562709,1.98405961,109810.0,109800.0,0.33416667]
[1748341563617,1.98405961,109810.0,109800.0,0.25294684]
[1748341564018,1.98405961,109810.0,109800.0,0.28404684]
[1748341566221,1.8987202,109810.0,109800.0,0.3403179]
[1748341566605,2.01255054,109810.0,109800.0,0.3403179]
[1748341567111,2.01255054,109810.0,109800.0,0.34032612]
[1748341567516,1.8987202,109810.0,109800.0,0.34032612]
[1748341567719,1.98405709,109810.0,109800.0,0.34032612]
[1748341568421,1.98405709,109810.0,109800.0,0.43317657]
[1748341568812,1.98405709,109810.0,109800.0,0.34032612]
[1748341569727,1.98405709,109810.0,109800.0,0.44476037]
[1748341570626,1.98405709,109810.0,109800.0,0.39534142]
[1748341570813,1.98405709,109810.0,109800.0,0.44477666]
[1748341571014,1.98405709,109810.0,109800.0,0.27204326]
[1748341571222,1.98405709,109810.0,109800.0,0.58204326]
[1748341571423,2.19405709,109810.0,109800.0,0.58204326]
[1748341571625,2.19405709,109810.0,109800.0,0.61504326]
[1748341572217,1.98405709,109810.0,109800.0,0.61504326]
[1748341573020,1.98405709,109810.0,109800.0,0.51420666]
[1748341574018,1.98405709,109810.0,109800.0,0.53420666]
[1748341574220,1.98405709,109810.0,109800.0,0.53421978]
[1748341574528,1.98393709,109810.0,109800.0,0.53421978]
[1748341578230,1.06254713,109810.0,109800.0,0.53421978]
[1748341578433,1.39483925,109810.0,109800.0,0.53421978]
[1748341578633,1.39483925,109810.0,109800.0,0.56441978]
[1748341578833,1.39495925,109810.0,109800.0,0.56441978]
[1748341579130,0.86964929,109810.0,109800.0,0.56441978]
[1748341579333,1.39483925,109810.0,109800.0,0.56441978]
[1748341579530,1.78605925,109810.0,109800.0,0.56541978]
[1748341580035,1.78605925,109810.0,109800.0,0.57331418]
[1748341580237,1.78405925,109810.0,109800.0,0.57331418]
[1748341580439,1.78605925,109810.0,109800.0,0.57331418]
[1748341581032,1.78405925,109810.0,109800.0,0.57331418]
[1748341581237,1.78505925,109810.0,109800.0,0.57331418]
[1748341581538,1.78505925,109810.0,109800.0,0.57331397]
[1748341582928,1.78505925,109810.0,109800.0,0.62959931]
[1748341583233,1.78505925,109810.0,109800.0,0.64115347]
[1748341584030,1.78505925,109810.0,109800.0,0.53671922]
[1748341585028,1.78505925,109810.0,109800.0,0.53670577]
[1748341588538,1.78505925,109810.0,109800.0,0.53670398]
[1748341589640,1.78505925,109810.0,109800.0,0.57328421]
[1748341592037,1.78505925,109810.0,109800.0,0.52385701]
[1748341592228,1.78505925,109810.0,109800.0,0.57328476]
[1748341593839,0.28954689,109810.0,109800.0,0.87075432]
[1748341594039,0.46501354,109810.0,109800.0,1.390517]
[1748341594240,0.3226531,109810.0,109800.0,1.67165018]
[1748341594453,0.7326531,109810.0,109800.0,1.58296744]
[1748341594637,0.7326531,109810.0,109800.0,1.61950534]
[1748341597350,0.7326531,109810.0,109800.0,1.52668687]
[1748341598237,0.7326531,109810.0,109800.0,1.64207683]
[1748341598438,0.7326531,109810.0,109800.0,1.62628273]
[1748341599346,0.7326531,109810.0,109800.0,1.62622168]
[1748341600453,0.7326531,109810.0,109800.0,1.64201578]
[1748341600647,0.7326531,109810.0,109800.0,1.62622168]
[1748341601549,0.7326531,109810.0,109800.0,1.64371058]
[1748341602542,0.7326531,109810.0,109800.0,1.55094378]
[1748341602847,0.7326531,109810.0,109800.0,1.55092789]
[1748341603650,0.7326531,109810.0,109800.0,1.53513379]
[1748341604647,0.7642531,109810.0,109800.0,1.30435387]
[1748341604952,0.7642531,109810.0,109800.0,1.53513379]
[1748341605346,0.7642531,109810.0,109800.0,1.61627817]
[1748341606450,0.7642531,109810.0,109800.0,1.61627476]
[1748341607969,0.7642531,109810.0,109800.0,1.61627432]
[1748341608957,0.7969531,109810.0,109800.0,1.61627432]
[1748341609754,0.7969531,109810.0,109800.0,1.56691813]
[1748341609955,0.7969531,109810.0,109800.0,1.48577419]
[1748341610254,0.7969531,109810.0,109800.0,1.38577419]
[1748341610853,0.7969531,109810.0,109800.0,1.48577419]
[1748341613555,0.7969131,109810.0,109800.0,1.48577419]
[1748341615551,0.7969131,109810.0,109800.0,1.53513856]
[1748341615750,0.7969131,109810.0,109800.0,1.55093266]
[1748341615963,0.7969131,109810.0,109800.0,1.60714428]
[1748341617056,0.7969131,109810.0,109800.0,1.60715093]
[1748341617561,0.8286131,109810.0,109800.0,1.72303642]
[1748341617747,0.8286131,109810.0,109800.0,1.60715093]
[1748341618058,0.8286131,109810.0,109800.0,1.82740325]
[1748341618260,0.8286131,109810.0,109800.0,1.48073784]
[1748341618456,0.8286131,109810.0,109800.0,1.71151776]
[1748341619153,0.8286131,109810.0,109800.0,1.35071776]
[1748341619453,0.8286131,109810.0,109800.0,1.48074208]
[1748341619658,0.8286131,109810.0,109800.0,1.50716309]
[1748341620345,0.4187731,109810.0,109800.0,1.50716309]
[1748341620549,0.8286131,109810.0,109800.0,1.60716309]
[1748341620750,0.8286131,109810.0,109800.0,1.60757051]
[1748341621661,0.8286131,109810.0,109800.0,1.5970516]
[1748341621854,0.8286131,109810.0,109800.0,1.63342422]
[1748341622448,0.8286131,109810.0,109800.0,1.49707414]
[1748341622654,0.4187731,109810.0,109800.0,1.49707414]
[1748341622855,0.8286131,109810.0,109800.0,1.49707414]
[1748341623055,0.8286131,109810.0,109800.0,1.58990395]
[1748341623255,0.8286131,109810.0,109800.0,1.49707414]
[1748341623660,0.4187731,109810.0,109800.0,1.46687414]
[1748341623858,0.8286131,109810.0,109800.0,1.57135751]
[1748341624257,0.8286131,109810.0,109800.0,1.57142738]
[1748341624457,0.8284931,109810.0,109800.0,1.57142738]
[1748341625362,0.8284931,109810.0,109800.0,1.45603742]
[1748341627769,0.8284931,109810.0,109800.0,1.45603758]
[1748341633473,0.8284931,109810.0,109800.0,1.57142754]
[1748341634372,0.8284931,109810.0,109800.0,1.45603758]
[1748341636487,0.8284931,109810.0,109800.0,1.34064762]
[1748341636669,1.12606306,109810.0,109800.0,0.91816802]
[1748341636870,0.94388306,109810.0,109800.0,0.55736802]
[1748341637083,1.12606306,109810.0,109800.0,0.55736802]
[1748341637380,1.18291363,109810.0,109800.0,0.567896]
[1748341638372,1.12606306,109810.0,109800.0,0.567896]
[1748341639776,1.13045488,109810.0,109800.0,0.567896]
[1748341639979,1.18730545,109810.0,109800.0,0.567896]
[1748341640483,1.07191549,109810.0,109800.0,0.567896]
[1748341640783,1.13045488,109810.0,109800.0,0.567896]
[1748341642780,1.13045488,109810.0,109800.0,0.46337622]
[1748341643287,1.13045488,109810.0,109800.0,0.56785959]
[1748341643876,1.01506492,109810.0,109800.0,0.56785959]
[1748341644076,1.01506492,109810.0,109800.0,0.86532945]
[1748341644887,1.0106731,109810.0,109800.0,0.86532945]
[1748341645277,1.0106731,109810.0,109800.0,0.68324955]
[1748341645474,1.95225302,109810.0,109800.0,0.56785959]
[1748341645680,1.95225302,109810.0,109800.0,0.38058794]
[1748341645882,1.95664484,109810.0,109800.0,0.27342779]
[1748341646183,1.95664484,109810.0,109800.0,0.18059443]
[1748341646379,1.91664484,109810.0,109800.0,0.18059443]
[1748341646577,1.91664484,109810.0,109800.0,0.1303612]
[1748341646791,2.03047518,109810.0,109800.0,0.1303612]
[1748341647179,1.91664484,109810.0,109800.0,0.1303612]
[1748341647380,1.80125488,109810.0,109800.0,0.1303612]
[1748341647680,1.91664484,109810.0,109800.0,0.1303612]
[1748341647880,1.80125488,109810.0,109800.0,0.1303612]
[1748341648290,1.88648612,109810.0,109800.0,0.1303612]
[1748341649084,1.90018658,109810.0,109800.0,0.1303612]
[1748341650296,1.90018658,109810.0,109800.0,0.30956677]
[1748341650486,1.90018658,109810.0,109800.0,0.26]
[1748341651888,1.89579476,109810.0,109800.0,0.26]
[1748341652685,1.95579476,109810.0,109800.0,0.26]
[1748341655291,2.07118472,109810.0,109800.0,0.26]
[1748341655486,1.95579476,109810.0,109800.0,0.26]
[1748341656092,2.01256139,109810.0,109800.0,0.26]
[1748341656491,1.95579476,109810.0,109800.0,0.26]
[1748341656999,1.96018658,109810.0,109800.0,0.26]
[1748341658097,1.95579476,109810.0,109800.0,0.26]
[1748341658599,1.95587476,109810.0,109800.0,0.26]
[1748341660603,2.01263918,109810.0,109800.0,0.26]
[1748341661199,2.01263918,109810.0,109800.0,0.30885429]
[1748341661515,1.92240922,109810.0,109800.0,0.30885429]
[1748341661707,1.92240922,109810.0,109800.0,0.33975429]
[1748341661708,1.92252922,109810.0,109800.0,0.33975429]
[1748341662011,1.23283918,109810.0,109800.0,0.37055429]
[1748341662203,2.03779918,109810.0,109800.0,0.30936158]
[1748341662596,2.33791918,109810.0,109800.0,0.57538765]
[1748341663406,2.33791918,109810.0,109800.0,0.63102767]
[1748341664406,2.33791918,109810.0,109800.0,0.57538765]
[1748341664407,2.03791918,109810.0,109800.0,0.57538765]
[1748341665015,2.03791918,109810.0,109800.0,0.63103418]
[1748341666104,2.03791918,109810.0,109800.0,0.4337]
[1748341667009,1.39467798,109810.0,109800.0,0.4337]
[1748341667211,1.91986794,109810.0,109800.0,0.4337]
[1748341667509,1.88828794,109810.0,109800.0,0.4337]
[1748341668411,1.97351918,109810.0,109800.0,0.4337]
[1748341668811,1.97351918,109810.0,109800.0,0.48259049]
[1748341669108,1.97351918,109810.0,109800.0,0.57542385]
[1748341670804,1.97351918,109810.0,109800.0,0.57543503]
[1748341671005,2.03561918,109810.0,109800.0,0.57543503]
[1748341671615,2.03561918,109810.0,109800.0,0.57544157]
[1748341673314,2.040011,109810.0,109800.0,0.63115253]
[1748341673903,2.040011,109810.0,109800.0,0.59915253]
[1748341674110,1.98324658,109810.0,109800.0,0.50632043]
[1748341674306,2.05324658,109810.0,109800.0,0.45060821]
[1748341674501,2.09324658,109810.0,109800.0,0.45060821]
[1748341674714,2.08324658,109810.0,109800.0,0.45060821]
[1748341675109,1.98324658,109810.0,109800.0,0.4017]
[1748341675311,1.98324658,109810.0,109800.0,0.45065325]
[1748341676417,1.97885476,109810.0,109800.0,0.45065325]
[1748341678521,1.97885476,109810.0,109800.0,0.48345325]
[1748341678716,1.8634648,109810.0,109800.0,0.48345325]
[1748341678907,1.0275848,109810.0,109800.0,0.48345814]
[1748341679111,1.98793476,109810.0,109800.0,0.48345814]
[1748341679309,1.98781476,109810.0,109800.0,0.48345814]
[1748341679516,1.94793476,109810.0,109800.0,0.4345]
[1748341679818,1.94793476,109810.0,109800.0,0.48345589]
[1748341680414,1.17721476,109810.0,109800.0,0.48345589]
[1748341680614,1.58713476,109810.0,109800.0,0.49135063]
[1748341681121,1.94793476,109810.0,109800.0,0.49135063]
[1748341681916,1.96075571,109810.0,109800.0,0.48345589]
[1748341682122,1.96075571,109810.0,109800.0,0.49135063]
[1748341682416,1.0275848,109810.0,109800.0,0.49135063]
[1748341682717,0.76868434,109810.0,109800.0,0.49135227]
[1748341682914,0.3226531,109810.0,109800.0,1.04476015]
[1748341683118,0.7326931,109810.0,109800.0,1.03686488]
[1748341683317,0.7325731,109810.0,109800.0,1.03686488]
[1748341683618,0.19759288,109810.0,109800.0,1.1296981]
[1748341683817,0.7325733,109810.0,109800.0,1.2454922]
[1748341684124,0.7326933,109810.0,109800.0,1.25601236]
[1748341684318,0.7326933,109810.0,109800.0,1.32424129]
[1748341684528,0.3227733,109810.0,109800.0,1.32424129]
[1748341684721,0.7326933,109810.0,109800.0,1.32424129]
[1748341684915,0.7326933,109810.0,109800.0,1.31372113]
[1748341685328,0.7326533,109810.0,109800.0,1.50273911]
[1748341686213,0.7326533,109810.0,109800.0,1.38685362]
[1748341687522,0.7326533,109810.0,109800.0,1.42385853]
[1748341688419,0.7326533,109810.0,109800.0,1.33114898]
[1748341688619,0.3227733,109810.0,109800.0,1.33114898]
[1748341688821,0.7326533,109810.0,109800.0,1.33114898]
[1748341689025,0.3227733,109810.0,109800.0,1.33114898]
[1748341689328,0.3227733,109810.0,109800.0,1.55206944]
[1748341689623,0.7326533,109810.0,109800.0,1.64314144]
[1748341689834,0.7325333,109810.0,109800.0,1.63254006]
[1748341690024,0.7326533,109810.0,109800.0,1.63254006]
[1748341690213,0.3227733,109810.0,109800.0,2.02754006]
[1748341690633,0.3227733,109810.0,109800.0,2.12754006]
[1748341691218,0.14071,109810.0,109800.0,2.12754006]
[1748341691526,0.18218331,109810.0,109800.0,2.4333906]
[1748341691821,0.18645513,109810.0,109800.0,2.34068105]
[1748341692026,0.18657513,109810.0,109800.0,2.34068105]
[1748341692226,0.00451183,109810.0,109800.0,2.43329505]
[1748341692424,0.22768188,109830.0,109820.0,0.48310158]
[1748341692625,0.00013688,109830.0,109820.0,1.792285]
[1748341692823,0.18216708,109830.0,109820.0,2.27460749]
[1748341693024,0.00025688,109830.0,109820.0,2.42885988]
[1748341693234,0.18228708,109830.0,109820.0,2.46557516]
[1748341693417,0.18216708,109830.0,109820.0,2.47931857]
[1748341693623,0.00025688,109830.0,109820.0,2.47942798]
[1748341693933,0.00025688,109830.0,109820.0,2.46568457]
[1748341694222,0.00025688,109830.0,109820.0,2.46668457]
[1748341694526,0.00025688,109830.0,109820.0,2.37663257]
[1748341694926,0.00025688,109830.0,109820.0,2.24842166]
[1748341695130,0.00025688,109830.0,109820.0,2.24742166]
[1748341695322,0.00025688,109830.0,109820.0,2.25042166]
[1748341695631,0.00025688,109830.0,109820.0,2.37863257]
[1748341696136,0.00025688,109830.0,109820.0,2.2860955]
[1748341696430,0.00025688,109830.0,109820.0,2.4645955]
[1748341697027,0.18228708,109830.0,109820.0,2.33638459]
[1748341697231,0.00025688,109830.0,109820.0,2.33638459]
[1748341697530,0.00025688,109830.0,109820.0,2.42892166]
[1748341698122,0.18228698,109830.0,109820.0,2.42892166]
[1748341698523,0.18228698,109830.0,109820.0,2.44228961]
[1748341698725,0.18228698,109830.0,109820.0,2.44219589]
[1748341699528,0.18228698,109830.0,109820.0,2.04719589]
[1748341699931,0.1866788,109830.0,109820.0,2.04719589]
[1748341700131,0.1866788,109830.0,109820.0,1.86869589]
[1748341700334,0.1866788,109830.0,109820.0,1.77615882]
[1748341702531,0.1866788,109830.0,109820.0,1.77613222]
[1748341702931,0.2183788,109830.0,109820.0,1.77613222]
[1748341703733,0.2183788,109830.0,109820.0,1.79444866]
[1748341704127,0.6281388,109830.0,109820.0,1.79444866]
[1748341706034,0.6281388,109830.0,109820.0,1.97294866]
[1748341706331,0.6281388,109830.0,109820.0,1.97294923]
[1748341707243,0.6281388,109830.0,109820.0,1.96509965]
[1748341707741,0.6281388,109830.0,109820.0,1.86509965]
[1748341707942,0.6585388,109830.0,109820.0,1.87295158]
[1748341708136,0.6585388,109830.0,109820.0,1.86509965]
[1748341708836,0.6896388,109830.0,109820.0,1.86509965]
[1748341709035,0.6896388,109830.0,109820.0,1.96509965]
[1748341709640,0.6896388,109830.0,109820.0,1.96484759]
[1748341710141,0.6896388,109830.0,109820.0,2.05738466]
[1748341710335,0.6896388,109830.0,109820.0,2.12845886]
[1748341710733,0.6896388,109830.0,109820.0,2.12847345]
[1748341711233,0.6896388,109830.0,109820.0,2.03593638]
[1748341711839,0.6896388,109830.0,109820.0,2.12838245]
[1748341712346,0.6896388,109830.0,109820.0,2.03593638]
[1748341713237,0.6896388,109830.0,109820.0,2.02557201]
[1748341713834,0.6896388,109830.0,109820.0,2.12987025]
[1748341714635,1.00002971,109830.0,109820.0,1.72752036]
[1748341714937,1.00002971,109830.0,109820.0,1.03502002]
[1748341715136,0.99563789,109830.0,109820.0,0.75625633]
[1748341715441,0.99563789,109830.0,109820.0,0.93830303]
[1748341715944,0.99563789,109830.0,109820.0,0.946171]
[1748341716633,0.99563789,109830.0,109820.0,0.94617493]
[1748341716841,0.86742698,109830.0,109820.0,0.94617493]
[1748341717236,0.86742698,109830.0,109820.0,1.00165891]
[1748341718341,0.86742698,109830.0,109820.0,1.01224896]
[1748341719340,0.86742698,109830.0,109820.0,0.9196226]
[1748341719542,0.86742698,109830.0,109820.0,0.956794]
[1748341720136,0.86742698,109830.0,109820.0,0.989194]
[1748341720333,0.45766698,109830.0,109820.0,0.989194]
[1748341720540,0.86742698,109830.0,109820.0,1.35009479]
[1748341720741,0.45754698,109830.0,109820.0,1.38109479]
[1748341721041,0.86742698,109830.0,109820.0,1.38109479]
[1748341721248,0.86742698,109830.0,109820.0,1.3732141]
[1748341721939,0.86742698,109830.0,109820.0,1.0124141]
[1748341722135,0.86742698,109830.0,109820.0,1.06796272]
[1748341722335,0.8718188,109830.0,109820.0,1.06796272]
[1748341723342,0.8718188,109830.0,109820.0,1.0124141]
[1748341724051,0.8718188,109830.0,109820.0,0.9814141]
[1748341724245,1.00002971,109830.0,109820.0,0.88875872]
[1748341724940,0.8718188,109830.0,109820.0,0.88875872]
[1748341727452,0.8718188,109830.0,109820.0,0.92075872]
[1748341728151,0.8718188,109830.0,109820.0,0.92076735]
[1748341729551,0.8718188,109830.0,109820.0,1.01346007]
[1748341729746,0.8718188,109830.0,109820.0,0.71971257]
[1748341731757,0.8718188,109830.0,109820.0,0.71979666]
[1748341733248,0.8718188,109830.0,109820.0,0.81248938]
[1748341738746,0.8718188,109830.0,109820.0,0.76363125]
[1748341738946,0.8718188,109830.0,109820.0,0.8125102]
[1748341739555,0.8718188,109830.0,109820.0,0.77548199]
[1748341739756,0.8718188,109830.0,109820.0,0.76499515]
[1748341740054,0.8718188,109830.0,109820.0,0.79121645]
[1748341740955,0.8718188,109830.0,109820.0,0.44748722]
[1748341741154,0.8718188,109830.0,109820.0,0.78121645]
[1748341741557,0.8718188,109830.0,109820.0,0.81401645]
[1748341742250,0.8718188,109830.0,109820.0,0.91831469]
[1748341742449,0.8718188,109830.0,109820.0,0.91836266]
[1748341743056,0.8718188,109830.0,109820.0,0.70351596]
[1748341743251,1.00002971,109830.0,109820.0,0.78126432]
[1748341743459,0.8718188,109830.0,109820.0,0.70351596]
[1748341743651,0.8718188,109830.0,109820.0,0.88556256]
[1748341744269,0.8718188,109830.0,109820.0,0.88663276]
[1748341744453,0.8718188,109830.0,109820.0,0.91663276]
[1748341745159,0.8718188,109830.0,109820.0,0.73458616]
[1748341745354,0.8718188,109830.0,109820.0,0.91663276]
[1748341746157,0.8864188,109830.0,109820.0,0.91672406]
[1748341748856,0.8864188,109830.0,109820.0,0.86676233]
[1748341749057,0.8864188,109830.0,109820.0,0.61879197]
[1748341749257,0.8864188,109830.0,109820.0,0.91692433]
[1748341749564,0.8864188,109830.0,109820.0,0.80084006]
[1748341749769,0.8864188,109830.0,109820.0,0.91692572]
[1748341749770,0.8960988,109830.0,109820.0,0.91692572]
[1748341749964,1.01145466,109830.0,109820.0,0.91692572]
[1748341751568,1.06828294,109830.0,109820.0,0.91692572]
[1748341752067,1.01133466,109830.0,109820.0,0.91692572]
[1748341753069,0.8959788,109830.0,109820.0,0.91692572]
[1748341753268,1.01133466,109830.0,109820.0,0.91692951]
[1748341753462,1.01133466,109830.0,109820.0,0.73488281]
[1748341753665,1.01133466,109830.0,109820.0,0.91692951]
[1748341754569,1.01133466,109830.0,109820.0,0.80084385]
[1748341756468,1.01133466,109830.0,109820.0,0.91692951]
[1748341756667,1.01133466,109830.0,109820.0,0.73488213]
[1748341756971,1.42896294,109830.0,109820.0,0.73488213]
[1748341757866,1.42457112,109830.0,109820.0,0.73488213]
[1748341759173,1.83221112,109830.0,109820.0,0.61879647]
[1748341760069,1.83221112,109830.0,109820.0,0.7232729]
[1748341760266,1.83221112,109830.0,109820.0,0.72326883]
[1748341760867,1.83660294,109830.0,109820.0,0.72326883]
[1748341761265,1.83660294,109830.0,109820.0,0.6187924]
[1748341761974,1.83221112,109830.0,109820.0,0.73487806]
[1748341762272,1.83221112,109830.0,109820.0,0.51410425]
[1748341765269,1.47141112,109830.0,109820.0,0.51410425]
[1748341765467,1.83221112,109830.0,109820.0,0.51410425]
[1748341769977,1.42245112,109830.0,109820.0,0.51410425]
[1748341770177,1.83221112,109830.0,109820.0,0.51410425]
[1748341770483,1.30709526,109830.0,109820.0,0.51410425]
[1748341770684,1.83221112,109830.0,109820.0,0.51410425]
[1748341771075,1.71685526,109830.0,109820.0,0.51410425]
[1748341771277,1.83221112,109830.0,109820.0,0.51410425]
[1748341772280,1.83221112,109830.0,109820.0,0.6663499]
[1748341772874,1.83221112,109830.0,109820.0,0.72198063]
[1748341773071,1.83221112,109830.0,109820.0,0.62911512]
[1748341774782,1.83221112,109830.0,109820.0,0.62911559]
[1748341775183,1.83221112,109830.0,109820.0,0.57773443]
[1748341776175,1.83221112,109830.0,109820.0,0.69382009]
[1748341776792,1.83221112,109830.0,109820.0,0.79829287]
[1748341776988,1.83221112,109830.0,109820.0,0.68220721]
[1748341777578,1.83228551,109830.0,109820.0,0.68220739]
[1748341778287,1.83228551,109830.0,109820.0,0.71430739]
[1748341778480,1.83228551,109830.0,109820.0,0.71430936]
[1748341779379,1.83667733,109830.0,109820.0,0.71430936]
[1748341780287,1.83228551,109830.0,109820.0,0.71430936]
[1748341781990,1.83228551,109830.0,109820.0,0.60983658]
[1748341784890,1.83228551,109830.0,109820.0,0.7143156]
[1748341785096,1.83228551,109830.0,109820.0,0.70378952]
[1748341785694,1.83228551,109830.0,109820.0,0.70379608]
[1748341786794,1.42252551,109830.0,109820.0,0.70379608]
[1748341786989,1.83228551,109830.0,109820.0,0.70379608]
[1748341788596,1.83228551,109830.0,109820.0,0.63655606]
[1748341789189,1.65010551,109830.0,109820.0,0.63655761]
[1748341789491,1.83228551,109830.0,109820.0,0.63655761]
[1748341790688,1.83228551,109830.0,109820.0,0.6921949]
[1748341791388,1.47148551,109830.0,109820.0,0.6921949]
[1748341791593,1.83228551,109830.0,109820.0,0.6921949]
[1748341792793,1.71692965,109830.0,109820.0,0.69219492]
[1748341792997,1.83228551,109830.0,109820.0,0.63655762]
[1748341794696,1.83228551,109830.0,109820.0,0.69219289]
[1748341795401,1.83228551,109830.0,109820.0,0.59931837]
[1748341795602,1.83667733,109830.0,109820.0,0.59931837]
[1748341796285,1.83667733,109830.0,109820.0,0.59931659]
[1748341796494,1.83228551,109830.0,109820.0,0.59931659]
[1748341796689,1.42252551,109830.0,109820.0,0.59931659]
[1748341796901,1.83228551,109830.0,109820.0,0.59931659]
[1748341797603,1.83667733,109830.0,109820.0,0.78136329]
[1748341798701,1.83667733,109830.0,109820.0,0.89744895]
[1748341799698,1.71692965,109830.0,109820.0,0.89744895]
[1748341799896,1.77538284,109830.0,109820.0,0.89744899]
[1748341800104,0.23814698,109830.0,109820.0,1.26911131]
[1748341800304,0.64790698,109830.0,109820.0,1.37359829]
[1748341800603,0.6524188,109830.0,109820.0,1.35789404]
[1748341800902,0.2425388,109830.0,109820.0,1.35789404]
[1748341801103,0.6524188,109830.0,109820.0,1.35789404]
[1748341801507,0.6524188,109830.0,109820.0,1.30903886]
[1748341801804,0.2426588,109830.0,109820.0,1.25340706]
[1748341801996,0.6524188,109830.0,109820.0,1.26919309]
[1748341802397,0.6524188,109830.0,109820.0,1.37894287]
[1748341802803,0.6524188,109830.0,109820.0,1.47894287]
[1748341803599,0.6524188,109830.0,109820.0,1.36285721]
[1748341804710,0.2426588,109830.0,109820.0,1.46724845]
[1748341804904,0.6524188,109830.0,109820.0,1.46724845]
[1748341805305,0.6524188,109830.0,109820.0,1.48060115]
[1748341805505,0.6207188,109830.0,109820.0,1.45954475]
[1748341805912,0.6205988,109830.0,109820.0,1.45954475]
[1748341806104,0.6207188,109830.0,109820.0,1.45944964]
[1748341806302,0.6207188,109830.0,109820.0,1.48050604]
[1748341806608,0.6207188,109830.0,109820.0,1.3761148]
[1748341807611,0.2109588,109830.0,109820.0,1.48046732]
[1748341807816,0.6207188,109830.0,109820.0,1.48046732]
[1748341808006,0.6207188,109830.0,109820.0,1.44182955]
[1748341808201,0.6207188,109830.0,109820.0,1.61911238]
[1748341808403,0.6207188,109830.0,109820.0,1.49205715]
[1748341808905,0.6207188,109830.0,109820.0,1.3761148]
[1748341809101,0.6207188,109830.0,109820.0,1.49205715]
[1748341809308,0.6205988,109830.0,109820.0,1.49205715]
[1748341809510,0.6207188,109830.0,109820.0,1.49205715]
[1748341809914,0.6207188,109830.0,109820.0,1.49199269]
[1748341813409,0.2109588,109830.0,109820.0,1.49199269]
[1748341813603,0.2109588,109830.0,109820.0,1.49195783]
[1748341817421,0.2109588,109830.0,109820.0,1.38767285]
[1748341817621,0.2109588,109830.0,109820.0,1.49194821]
[1748341818416,0.0289287,109830.0,109820.0,1.49194821]
[1748341818721,0.2109588,109830.0,109820.0,1.49194821]
[1748341819219,0.0289287,109830.0,109820.0,1.49194821]
[1748341819420,0.0289287,109830.0,109820.0,1.37659235]
[1748341819619,0.2437588,109830.0,109820.0,1.49194821]
[1748341821227,0.0617287,109830.0,109820.0,1.49195277]
[1748341821524,0.2437588,109830.0,109820.0,1.49195277]
[1748341824627,0.0617287,109830.0,109820.0,1.49195277]
[1748341824818,0.2437588,109830.0,109820.0,1.49195277]
[1748341825019,0.2437588,109830.0,109820.0,1.49197995]
[1748341825527,0.0617287,109830.0,109820.0,1.49197995]
[1748341825720,0.2437588,109830.0,109820.0,1.49197995]
[1748341827824,0.2437588,109830.0,109820.0,1.48038527]
[1748341828024,0.2437588,109830.0,109820.0,1.29944517]
[1748341828430,0.2437588,109830.0,109820.0,1.29947574]
[1748341828730,0.0617287,109830.0,109820.0,1.29947574]
[1748341829116,0.0944287,109830.0,109820.0,1.29947574]
[1748341829515,0.0944287,109830.0,109820.0,1.32053214]
[1748341831228,0.2764588,109830.0,109820.0,1.20517628]
[1748341831427,0.2764588,109830.0,109820.0,1.32053214]
[1748341831615,0.3083588,109830.0,109820.0,1.20517628]
[1748341831819,0.3083588,109830.0,109820.0,1.32053214]
[1748341832129,0.3083588,109830.0,109820.0,1.32054994]
[1748341832328,0.1263287,109830.0,109820.0,1.32054994]
[1748341834331,0.42371466,109830.0,109820.0,1.1735311]
[1748341834519,0.42371466,109830.0,109820.0,0.46987584]
[1748341834720,1.08205052,109830.0,109820.0,0.38565316]
[1748341835026,1.60361052,109830.0,109820.0,0.18448653]
[1748341835329,1.68896545,109830.0,109820.0,0.15818945]
[1748341835530,1.68896545,109830.0,109820.0,0.31051976]
[1748341835831,2.03466252,109830.0,109820.0,0.16081976]
[1748341836037,2.12001745,109830.0,109820.0,0.16081976]